[Event "Early-Titled-Tuesday-Blitz-February-27-2024"]
[Site "Chess.com"]
[Date "2024.02.27"]
[Round "1"]
[White "TheAlienParty"]
[Black "Flawless_Fighter"]
[Result "1/2-1/2"]
[WhiteElo "2429"]
[BlackElo "2731"]
[TimeControl "180+1"]
[EndTime "8:07:02 PST"]
[Termination "Game drawn by repetition"]

1. c4 {[%clk 0:02:58.7]} 1... e6 {[%clk 0:03:00]} 2. Nf3 {[%clk 0:02:57.7]} 2...
d5 {[%clk 0:03:00.9]} 3. e3 {[%clk 0:02:57.6]} 3... Nf6 {[%clk 0:03:01.5]} 4. b3
{[%clk 0:02:55.3]} 4... c5 {[%clk 0:03:00]} 5. cxd5 {[%clk 0:02:52.7]} 5... exd5
{[%clk 0:03:00.9]} 6. Bb2 {[%clk 0:02:52.7]} 6... Nc6 {[%clk 0:03:01.4]} 7. Be2
{[%clk 0:02:52.1]} 7... Be7 {[%clk 0:02:59.8]} 8. O-O {[%clk 0:02:46]} 8... O-O
{[%clk 0:02:59.5]} 9. d4 {[%clk 0:02:45.8]} 9... Bg4 {[%clk 0:02:57.1]} 10. dxc5
{[%clk 0:02:42]} 10... Bxc5 {[%clk 0:02:56.8]} 11. Nd4 {[%clk 0:02:41.4]} 11...
Bxe2 {[%clk 0:02:51.5]} 12. Nxe2 {[%clk 0:02:40.6]} 12... Qe7 {[%clk 0:02:49]}
13. Nbc3 {[%clk 0:02:33.5]} 13... Rad8 {[%clk 0:02:48.9]} 14. Nb5 {[%clk
0:02:32]} 14... a6 {[%clk 0:02:47.8]} 15. Nbd4 {[%clk 0:02:31.5]} 15... Ne4
{[%clk 0:02:46.3]} 16. a3 {[%clk 0:02:25]} 16... Nxd4 {[%clk 0:02:33.8]} 17.
Nxd4 {[%clk 0:02:23]} 17... f6 {[%clk 0:02:20.9]} 18. b4 {[%clk 0:02:19.3]}
18... Ba7 {[%clk 0:02:19.9]} 19. Rc1 {[%clk 0:02:18.2]} 19... Bb8 {[%clk
0:02:17.3]} 20. Nf3 {[%clk 0:02:17]} 20... Qe6 {[%clk 0:02:13.5]} 21. Qd4 {[%clk
0:02:16.3]} 21... Rfe8 {[%clk 0:02:11.2]} 22. Rfd1 {[%clk 0:02:15]} 22... Be5
{[%clk 0:02:06.6]} 23. Nxe5 {[%clk 0:02:12.9]} 23... fxe5 {[%clk 0:02:07.5]} 24.
Qd3 {[%clk 0:02:09.4]} 24... Rf8 {[%clk 0:01:53.7]} 25. f3 {[%clk 0:02:09]}
25... Nf6 {[%clk 0:01:53.8]} 26. Rc7 {[%clk 0:02:07]} 26... e4 {[%clk
0:01:44.9]} 27. fxe4 {[%clk 0:02:04.2]} 27... Qxe4 {[%clk 0:01:09.3]} 28. Rxb7
{[%clk 0:02:01.2]} 28... Qg4 {[%clk 0:01:02.4]} 29. Rf1 {[%clk 0:01:56.1]} 29...
Qg5 {[%clk 0:00:57.4]} 30. Bd4 {[%clk 0:01:51]} 30... h6 {[%clk 0:00:56.9]} 31.
Qxa6 {[%clk 0:01:49.1]} 31... Ra8 {[%clk 0:00:50.1]} 32. Qe6+ {[%clk 0:01:40.1]}
32... Kh8 {[%clk 0:00:48.3]} 33. Bxf6 {[%clk 0:01:39.7]} 33... Rxf6 {[%clk
0:00:41.4]} 34. Rxf6 {[%clk 0:01:38.7]} 34... Qxf6 {[%clk 0:00:42]} 35. Qxf6
{[%clk 0:01:33.9]} 35... gxf6 {[%clk 0:00:42.5]} 36. Rd7 {[%clk 0:01:33.9]}
36... Rxa3 {[%clk 0:00:42.5]} 37. Rxd5 {[%clk 0:01:34]} 37... Rxe3 {[%clk
0:00:42.4]} 38. b5 {[%clk 0:01:33.2]} 38... Rb3 {[%clk 0:00:42.6]} 39. Rd8+
{[%clk 0:01:33]} 39... Kg7 {[%clk 0:00:42.9]} 40. Rb8 {[%clk 0:01:33.4]} 40...
Rb2 {[%clk 0:00:39.9]} 41. h3 {[%clk 0:01:33.1]} 41... h5 {[%clk 0:00:40.4]} 42.
b6 {[%clk 0:01:32.5]} 42... Kg6 {[%clk 0:00:29]} 43. b7 {[%clk 0:01:32]} 43...
Kf5 {[%clk 0:00:29.5]} 44. Rh8 {[%clk 0:01:31]} 44... Rxb7 {[%clk 0:00:28.6]}
45. Rxh5+ {[%clk 0:01:31]} 45... Kg6 {[%clk 0:00:29.2]} 46. Rc5 {[%clk
0:01:30.2]} 46... Rb1+ {[%clk 0:00:29.7]} 47. Kh2 {[%clk 0:01:30.2]} 47... Rb2
{[%clk 0:00:30]} 48. Rc3 {[%clk 0:01:27.7]} 48... f5 {[%clk 0:00:30.2]} 49. Rf3
{[%clk 0:01:27.6]} 49... Kg5 {[%clk 0:00:29.6]} 50. Kg3 {[%clk 0:01:27.6]} 50...
Ra2 {[%clk 0:00:29.4]} 51. Rb3 {[%clk 0:01:26.6]} 51... Rc2 {[%clk 0:00:29.2]}
52. h4+ {[%clk 0:01:24.3]} 52... Kh5 {[%clk 0:00:28.3]} 53. Kh3 {[%clk
0:01:24.2]} 53... Ra2 {[%clk 0:00:25.9]} 54. Rb5 {[%clk 0:01:22.2]} 54... Ra3+
{[%clk 0:00:25.4]} 55. g3 {[%clk 0:01:21.8]} 55... Kg6 {[%clk 0:00:26.1]} 56.
Kg2 {[%clk 0:01:18.3]} 56... Ra2+ {[%clk 0:00:25.9]} 57. Kf3 {[%clk 0:01:18.2]}
57... Ra3+ {[%clk 0:00:26.5]} 58. Kf4 {[%clk 0:01:17.3]} 58... Ra4+ {[%clk
0:00:25.9]} 59. Kf3 {[%clk 0:01:16.2]} 59... Ra3+ {[%clk 0:00:26.2]} 60. Kg2
{[%clk 0:01:15.9]} 60... Ra2+ {[%clk 0:00:26.4]} 61. Kf3 {[%clk 0:01:15.4]}
61... Ra3+ {[%clk 0:00:26.9]} 1/2-1/2

[Event "Early-Titled-Tuesday-Blitz-February-27-2024"]
[Site "Chess.com"]
[Date "2024.02.27"]
[Round "1"]
[White "andrzej"]
[Black "Seochesspie"]
[Result "0-1"]
[WhiteElo "2485"]
[BlackElo "2862"]
[TimeControl "180+1"]
[EndTime "8:07:03 PST"]
[Termination "Seochesspie won on time"]

1. e4 {[%clk 0:03:00.9]} 1... c6 {[%clk 0:02:59.8]} 2. d4 {[%clk 0:03:00.9]}
2... d5 {[%clk 0:03:00.7]} 3. e5 {[%clk 0:03:01.5]} 3... Bf5 {[%clk 0:03:00.5]}
4. h4 {[%clk 0:03:02.1]} 4... a6 {[%clk 0:02:59.4]} 5. h5 {[%clk 0:03:00.8]}
5... c5 {[%clk 0:02:59.3]} 6. c3 {[%clk 0:02:54.9]} 6... Nc6 {[%clk 0:02:58.3]}
7. g4 {[%clk 0:02:51.9]} 7... Bd7 {[%clk 0:02:57.3]} 8. f4 {[%clk 0:02:39.4]}
8... e6 {[%clk 0:02:56.4]} 9. Be3 {[%clk 0:02:38]} 9... Qb6 {[%clk 0:02:55.4]}
10. Qd2 {[%clk 0:02:35.8]} 10... Rc8 {[%clk 0:02:53.2]} 11. Ne2 {[%clk
0:02:31.5]} 11... Nh6 {[%clk 0:02:50.8]} 12. Bh3 {[%clk 0:02:23.7]} 12... cxd4
{[%clk 0:02:49.1]} 13. cxd4 {[%clk 0:02:20.1]} 13... Bb4 {[%clk 0:02:48.6]} 14.
Nbc3 {[%clk 0:02:19.6]} 14... Na5 {[%clk 0:02:48.9]} 15. b3 {[%clk 0:02:16.8]}
15... f6 {[%clk 0:02:47.9]} 16. O-O {[%clk 0:02:07.9]} 16... Nf7 {[%clk
0:02:47.2]} 17. exf6 {[%clk 0:02:04.4]} 17... gxf6 {[%clk 0:02:47.1]} 18. g5
{[%clk 0:02:04.7]} 18... Bb5 {[%clk 0:02:46.6]} 19. Qb2 {[%clk 0:01:47.9]} 19...
Bxc3 {[%clk 0:02:37.7]} 20. Nxc3 {[%clk 0:01:48.8]} 20... Bxf1 {[%clk
0:02:37.8]} 21. Rxf1 {[%clk 0:01:49.4]} 21... f5 {[%clk 0:02:28.7]} 22. Na4
{[%clk 0:01:47.1]} 22... Qd6 {[%clk 0:02:19.3]} 23. Nc5 {[%clk 0:01:38.1]} 23...
b6 {[%clk 0:02:19]} 24. Nd3 {[%clk 0:01:35.7]} 24... Qe7 {[%clk 0:02:18.6]} 25.
Re1 {[%clk 0:01:25.3]} 25... Nd6 {[%clk 0:02:18]} 26. Ne5 {[%clk 0:01:23.6]}
26... Nc6 {[%clk 0:02:10.9]} 27. Rc1 {[%clk 0:01:15.6]} 27... Nxe5 {[%clk
0:02:06.1]} 28. dxe5 {[%clk 0:01:15.6]} 28... Rxc1+ {[%clk 0:02:05.6]} 29. Qxc1
{[%clk 0:01:15.6]} 29... Nf7 {[%clk 0:02:00.1]} 30. Qc6+ {[%clk 0:01:04.1]}
30... Qd7 {[%clk 0:01:59.1]} 31. Qa8+ {[%clk 0:00:54]} 31... Nd8 {[%clk
0:01:56.7]} 32. Qxa6 {[%clk 0:00:48.6]} 32... O-O {[%clk 0:01:55.2]} 33. Qxb6
{[%clk 0:00:48.6]} 33... Nc6 {[%clk 0:01:55.2]} 34. Bf1 {[%clk 0:00:46.7]} 34...
d4 {[%clk 0:01:54.1]} 35. Bd2 {[%clk 0:00:41.9]} 35... d3 {[%clk 0:01:54.2]} 36.
Bg2 {[%clk 0:00:37.6]} 36... Rc8 {[%clk 0:01:48.2]} 37. h6 {[%clk 0:00:24.2]}
37... Nd4 {[%clk 0:01:43.6]} 38. Qa6 {[%clk 0:00:12.3]} 38... Rc2 {[%clk
0:01:36.3]} 39. Qa8+ {[%clk 0:00:08.5]} 39... Kf7 {[%clk 0:01:20.5]} 40. Qh8
{[%clk 0:00:08.3]} 40... Kg6 {[%clk 0:01:20.7]} 41. Qg8+ {[%clk 0:00:04.3]}
41... Kh5 {[%clk 0:01:20.5]} 42. g6 {[%clk 0:00:04.7]} 42... Ne2+ {[%clk
0:01:06.3]} 43. Kh2 {[%clk 0:00:04.5]} 43... Rxd2 {[%clk 0:01:01.4]} 44. Bf3+
{[%clk 0:00:02.3]} 44... Kh4 {[%clk 0:00:59.7]} 45. gxh7 {[%clk 0:00:02.3]}
45... Nxf4+ {[%clk 0:00:57]} 0-1

[Event "Early-Titled-Tuesday-Blitz-February-27-2024"]
[Site "Chess.com"]
[Date "2024.02.27"]
[Round "1"]
[White "bulletteemo"]
[Black "Vse_po_kaify"]
[Result "1/2-1/2"]
[WhiteElo "2567"]
[BlackElo "2172"]
[TimeControl "180+1"]
[EndTime "8:07:03 PST"]
[Termination "Game drawn by repetition"]

1. e4 {[%clk 0:03:00.9]} 1... e5 {[%clk 0:02:57.8]} 2. Nf3 {[%clk 0:03:00.5]}
2... Nf6 {[%clk 0:02:58.2]} 3. Nxe5 {[%clk 0:03:00.3]} 3... d6 {[%clk
0:02:57.2]} 4. Nf3 {[%clk 0:03:00.9]} 4... Nxe4 {[%clk 0:02:57.7]} 5. d4 {[%clk
0:03:00.5]} 5... d5 {[%clk 0:02:57.9]} 6. Bd3 {[%clk 0:03:01.2]} 6... Bd6 {[%clk
0:02:58.3]} 7. O-O {[%clk 0:03:01.5]} 7... O-O {[%clk 0:02:59]} 8. c4 {[%clk
0:03:01.2]} 8... c6 {[%clk 0:02:58.5]} 9. cxd5 {[%clk 0:03:01.6]} 9... cxd5
{[%clk 0:02:59.4]} 10. Nc3 {[%clk 0:03:02.3]} 10... Nxc3 {[%clk 0:02:56.3]} 11.
bxc3 {[%clk 0:03:03.2]} 11... h6 {[%clk 0:02:56.6]} 12. Bc2 {[%clk 0:02:54.3]}
12... Nc6 {[%clk 0:02:46.6]} 13. Qd3 {[%clk 0:02:53.1]} 13... f5 {[%clk
0:02:47.1]} 14. Re1 {[%clk 0:02:49.4]} 14... Qf6 {[%clk 0:02:44.3]} 15. Bb3
{[%clk 0:02:48.3]} 15... Be6 {[%clk 0:02:43.1]} 16. Qb5 {[%clk 0:02:48.2]} 16...
a6 {[%clk 0:02:23.7]} 17. Qxb7 {[%clk 0:02:41.3]} 17... Na5 {[%clk 0:02:23.7]}
18. Qb6 {[%clk 0:02:37.1]} 18... Nxb3 {[%clk 0:02:21.6]} 19. axb3 {[%clk
0:02:36.4]} 19... Bf7 {[%clk 0:02:18.2]} 20. Qa5 {[%clk 0:02:32.1]} 20... Rab8
{[%clk 0:02:15.5]} 21. Ne5 {[%clk 0:02:25.3]} 21... Rfe8 {[%clk 0:02:10.1]} 22.
Bf4 {[%clk 0:02:15.7]} 22... Rxb3 {[%clk 0:02:03.7]} 23. Nd7 {[%clk 0:02:05]}
23... Qg6 {[%clk 0:02:03.6]} 24. Rxe8+ {[%clk 0:01:20.6]} 24... Bxe8 {[%clk
0:02:02.5]} 25. Qxd5+ {[%clk 0:01:19.6]} 25... Qf7 {[%clk 0:01:54.6]} 26. Nf6+
{[%clk 0:01:04.6]} 26... gxf6 {[%clk 0:01:50.1]} 27. Qxd6 {[%clk 0:01:04.7]}
27... Rxc3 {[%clk 0:01:45.7]} 28. h4 {[%clk 0:01:03.9]} 28... Rc6 {[%clk
0:01:37.6]} 29. Qd8 {[%clk 0:01:02.1]} 29... Qd7 {[%clk 0:01:34.9]} 30. Qa8
{[%clk 0:00:53.7]} 30... Kg7 {[%clk 0:01:24.6]} 31. d5 {[%clk 0:00:42.3]} 31...
Rb6 {[%clk 0:01:15.5]} 32. Re1 {[%clk 0:00:35.9]} 32... Bf7 {[%clk 0:01:12.9]}
33. d6 {[%clk 0:00:20.7]} 33... Qb7 {[%clk 0:01:11.6]} 34. Bxh6+ {[%clk
0:00:18.8]} 34... Kxh6 {[%clk 0:01:06.6]} 35. Qh8+ {[%clk 0:00:18.4]} 35... Kg6
{[%clk 0:01:06.9]} 36. h5+ {[%clk 0:00:12.4]} 36... Kg5 {[%clk 0:01:07.8]} 37.
h6 {[%clk 0:00:12.1]} 37... Rb1 {[%clk 0:01:05]} 38. Qg7+ {[%clk 0:00:12.2]}
38... Bg6 {[%clk 0:00:59.5]} 39. Rxb1 {[%clk 0:00:06.9]} 39... Qxb1+ {[%clk
0:00:59.3]} 40. Kh2 {[%clk 0:00:07.6]} 40... Qb4 {[%clk 0:00:47.9]} 41. d7
{[%clk 0:00:04.6]} 41... Qf4+ {[%clk 0:00:47.7]} 42. Kg1 {[%clk 0:00:04]} 42...
Qc1+ {[%clk 0:00:48.3]} 43. Kh2 {[%clk 0:00:04.3]} 43... Qf4+ {[%clk 0:00:48.9]}
44. Kg1 {[%clk 0:00:04.1]} 44... Qc1+ {[%clk 0:00:49.3]} 45. Kh2 {[%clk
0:00:04.6]} 45... Qf4+ {[%clk 0:00:49.9]} 1/2-1/2

[Event "Early-Titled-Tuesday-Blitz-February-27-2024"]
[Site "Chess.com"]
[Date "2024.02.27"]
[Round "1"]
[White "Tashik"]
[Black "Chopper1905"]
[Result "0-1"]
[WhiteElo "2510"]
[BlackElo "2928"]
[TimeControl "180+1"]
[EndTime "8:07:04 PST"]
[Termination "Chopper1905 won on time"]

1. c4 {[%clk 0:03:00.9]} 1... Nf6 {[%clk 0:02:58.4]} 2. Nc3 {[%clk 0:03:00.7]}
2... c5 {[%clk 0:02:54.1]} 3. Nf3 {[%clk 0:03:00.3]} 3... Nc6 {[%clk 0:02:49.3]}
4. d4 {[%clk 0:02:57.5]} 4... cxd4 {[%clk 0:02:47]} 5. Nxd4 {[%clk 0:02:58.4]}
5... e6 {[%clk 0:02:45.9]} 6. g3 {[%clk 0:02:57.8]} 6... Qb6 {[%clk 0:02:43]} 7.
Ndb5 {[%clk 0:02:57.8]} 7... Bc5 {[%clk 0:01:59.8]} 8. Nd6+ {[%clk 0:02:44.8]}
8... Ke7 {[%clk 0:01:57.6]} 9. Nde4 {[%clk 0:02:44.3]} 9... Nxe4 {[%clk
0:01:56.9]} 10. Nxe4 {[%clk 0:02:45.2]} 10... Bb4+ {[%clk 0:01:57.5]} 11. Bd2
{[%clk 0:02:44.6]} 11... f5 {[%clk 0:01:49]} 12. Nc3 {[%clk 0:02:28.5]} 12...
Ne5 {[%clk 0:01:47.6]} 13. Bg2 {[%clk 0:01:58.9]} 13... Nxc4 {[%clk 0:01:43]}
14. Bg5+ {[%clk 0:01:59.4]} 14... Kf7 {[%clk 0:01:40.8]} 15. O-O {[%clk
0:01:46]} 15... h6 {[%clk 0:01:38.5]} 16. Bc1 {[%clk 0:01:39.3]} 16... d5 {[%clk
0:01:32.9]} 17. Qc2 {[%clk 0:01:02.5]} 17... Rd8 {[%clk 0:01:15.5]} 18. b3
{[%clk 0:00:58.2]} 18... Na3 {[%clk 0:01:06]} 19. Qd3 {[%clk 0:00:50.4]} 19...
Qa6 {[%clk 0:01:05.8]} 20. Qxa6 {[%clk 0:00:30.5]} 20... bxa6 {[%clk 0:01:06.7]}
21. Bb2 {[%clk 0:00:27.3]} 21... Bb7 {[%clk 0:01:06.5]} 22. Na4 {[%clk
0:00:23.5]} 22... Rac8 {[%clk 0:01:02.9]} 23. Rac1 {[%clk 0:00:24.2]} 23... Nb5
{[%clk 0:00:56.2]} 24. e3 {[%clk 0:00:23.4]} 24... Bd2 {[%clk 0:00:50.2]} 25.
Rcd1 {[%clk 0:00:20.7]} 25... Rc2 {[%clk 0:00:48.9]} 26. h4 {[%clk 0:00:12]}
26... Rdc8 {[%clk 0:00:48.6]} 27. Bf3 {[%clk 0:00:09.8]} 27... Bc3 {[%clk
0:00:39.3]} 28. Nxc3 {[%clk 0:00:06.8]} 28... Nxc3 {[%clk 0:00:40.2]} 29. Bxc3
{[%clk 0:00:07]} 29... R8xc3 {[%clk 0:00:40.9]} 30. Ra1 {[%clk 0:00:05.7]} 30...
a5 {[%clk 0:00:40.4]} 31. Rfd1 {[%clk 0:00:05]} 31... Kf6 {[%clk 0:00:38.2]} 32.
Rd4 {[%clk 0:00:05.1]} 32... Bc6 {[%clk 0:00:35.3]} 33. Kg2 {[%clk 0:00:04.5]}
33... g5 {[%clk 0:00:35.4]} 34. hxg5+ {[%clk 0:00:04.2]} 34... hxg5 {[%clk
0:00:36.3]} 35. Rh1 {[%clk 0:00:04.2]} 35... g4 {[%clk 0:00:36.3]} 36. Bd1
{[%clk 0:00:03.1]} 36... Rxa2 {[%clk 0:00:34.4]} 37. Rh8 {[%clk 0:00:03.7]}
37... e5 {[%clk 0:00:33.8]} 0-1

[Event "Early-Titled-Tuesday-Blitz-February-27-2024"]
[Site "Chess.com"]
[Date "2024.02.27"]
[Round "1"]
[White "MMKZH22"]
[Black "MyDream003"]
[Result "1-0"]
[WhiteElo "2435"]
[BlackElo "2699"]
[TimeControl "180+1"]
[EndTime "8:07:04 PST"]
[Termination "MMKZH22 won on time"]

1. Nf3 {[%clk 0:03:00.7]} 1... d5 {[%clk 0:02:58.7]} 2. d4 {[%clk 0:03:00]} 2...
Nf6 {[%clk 0:02:58.7]} 3. c4 {[%clk 0:03:00]} 3... e6 {[%clk 0:02:55.8]} 4. Nc3
{[%clk 0:02:59.6]} 4... c6 {[%clk 0:02:56.3]} 5. e3 {[%clk 0:02:58.7]} 5... Nbd7
{[%clk 0:02:56.3]} 6. Qc2 {[%clk 0:02:53.7]} 6... Bd6 {[%clk 0:02:47.7]} 7. b3
{[%clk 0:02:52.9]} 7... O-O {[%clk 0:02:45.1]} 8. Be2 {[%clk 0:02:52.8]} 8... b6
{[%clk 0:02:41.7]} 9. O-O {[%clk 0:02:52.7]} 9... Bb7 {[%clk 0:02:42.1]} 10. Rd1
{[%clk 0:02:53]} 10... Qe7 {[%clk 0:02:41.6]} 11. Bb2 {[%clk 0:02:52.9]} 11...
Rfd8 {[%clk 0:02:39]} 12. e4 {[%clk 0:02:52.3]} 12... dxe4 {[%clk 0:02:38.4]}
13. Nxe4 {[%clk 0:02:52.6]} 13... Nxe4 {[%clk 0:02:39.3]} 14. Qxe4 {[%clk
0:02:52.9]} 14... Nf6 {[%clk 0:02:40]} 15. Qh4 {[%clk 0:02:53]} 15... c5 {[%clk
0:02:30.9]} 16. d5 {[%clk 0:02:42]} 16... exd5 {[%clk 0:02:12.1]} 17. Bxf6
{[%clk 0:02:40.6]} 17... Qxf6 {[%clk 0:02:10.4]} 18. Qxf6 {[%clk 0:02:40.4]}
18... gxf6 {[%clk 0:02:11.3]} 19. cxd5 {[%clk 0:02:40.6]} 19... a6 {[%clk
0:02:02]} 20. a4 {[%clk 0:02:39.3]} 20... Re8 {[%clk 0:02:02.2]} 21. Bc4 {[%clk
0:02:39]} 21... Bc8 {[%clk 0:01:59.7]} 22. Nh4 {[%clk 0:02:29.6]} 22... Bd7
{[%clk 0:01:58.8]} 23. Re1 {[%clk 0:02:20.7]} 23... Rxe1+ {[%clk 0:01:53.5]} 24.
Rxe1 {[%clk 0:02:20.4]} 24... b5 {[%clk 0:01:53.7]} 25. axb5 {[%clk 0:02:19.1]}
25... axb5 {[%clk 0:01:54.6]} 26. Bd3 {[%clk 0:02:19.3]} 26... Be5 {[%clk
0:01:20.1]} 27. Bf5 {[%clk 0:02:11.5]} 27... Be8 {[%clk 0:01:12.1]} 28. g4
{[%clk 0:01:58.1]} 28... c4 {[%clk 0:01:10.5]} 29. bxc4 {[%clk 0:01:57.4]} 29...
bxc4 {[%clk 0:01:11.4]} 30. Rd1 {[%clk 0:01:53.5]} 30... c3 {[%clk 0:01:06.7]}
31. d6 {[%clk 0:01:52.9]} 31... Ba4 {[%clk 0:01:05.3]} 32. Rc1 {[%clk
0:01:42.1]} 32... Bc6 {[%clk 0:00:31.4]} 33. d7 {[%clk 0:01:38]} 33... Kf8
{[%clk 0:00:28.7]} 34. h3 {[%clk 0:01:26.3]} 34... Ke7 {[%clk 0:00:28.8]} 35. f4
{[%clk 0:01:22.9]} 35... Bd4+ {[%clk 0:00:26.7]} 36. Kf1 {[%clk 0:01:16.9]}
36... Ra2 {[%clk 0:00:24.6]} 37. Re1+ {[%clk 0:01:09.6]} 37... Be5 {[%clk
0:00:06.9]} 38. fxe5 {[%clk 0:01:08.8]} 38... Bxd7 {[%clk 0:00:07.5]} 39. exf6+
{[%clk 0:01:07.9]} 39... Kd6 {[%clk 0:00:04.3]} 40. Rd1+ {[%clk 0:01:07.5]}
40... Ke5 {[%clk 0:00:04.8]} 41. Rxd7 {[%clk 0:01:02.5]} 41... Ra1+ {[%clk
0:00:04.3]} 42. Kf2 {[%clk 0:01:02.4]} 42... c2 {[%clk 0:00:03.5]} 43. Bxc2
{[%clk 0:01:01.9]} 1-0

[Event "Early-Titled-Tuesday-Blitz-February-27-2024"]
[Site "Chess.com"]
[Date "2024.02.27"]
[Round "1"]
[White "komogro"]
[Black "jefferyx"]
[Result "0-1"]
[WhiteElo "2533"]
[BlackElo "3054"]
[TimeControl "180+1"]
[EndTime "8:07:06 PST"]
[Termination "jefferyx won on time"]

1. d4 {[%clk 0:02:57.7]} 1... d5 {[%clk 0:02:59.4]} 2. c4 {[%clk 0:02:58.2]}
2... e6 {[%clk 0:02:59.4]} 3. Nf3 {[%clk 0:02:58.7]} 3... dxc4 {[%clk
0:02:59.1]} 4. e3 {[%clk 0:02:57.6]} 4... Nf6 {[%clk 0:02:58.6]} 5. Bxc4 {[%clk
0:02:57.9]} 5... c5 {[%clk 0:02:58.4]} 6. O-O {[%clk 0:02:58]} 6... Nc6 {[%clk
0:02:57.9]} 7. Qe2 {[%clk 0:02:57.6]} 7... a6 {[%clk 0:02:56.6]} 8. Rd1 {[%clk
0:02:57.3]} 8... b5 {[%clk 0:02:55.6]} 9. Bb3 {[%clk 0:02:47.1]} 9... c4 {[%clk
0:02:55.1]} 10. Bc2 {[%clk 0:02:46.9]} 10... Nb4 {[%clk 0:02:54.5]} 11. e4
{[%clk 0:02:41.7]} 11... Bb7 {[%clk 0:02:41.7]} 12. Nc3 {[%clk 0:02:30.2]} 12...
Nxc2 {[%clk 0:02:40.6]} 13. Qxc2 {[%clk 0:02:31.1]} 13... b4 {[%clk 0:02:32.2]}
14. Na4 {[%clk 0:02:14.3]} 14... Bxe4 {[%clk 0:02:29.4]} 15. Qxc4 {[%clk
0:02:13.5]} 15... Bxf3 {[%clk 0:02:05.4]} 16. gxf3 {[%clk 0:02:14.4]} 16... Qd5
{[%clk 0:02:03.9]} 17. Qxd5 {[%clk 0:02:10.7]} 17... Nxd5 {[%clk 0:02:03.4]} 18.
Be3 {[%clk 0:02:11.1]} 18... Bd6 {[%clk 0:02:02.6]} 19. Rac1 {[%clk 0:02:08.7]}
19... Ke7 {[%clk 0:02:01.6]} 20. Rc6 {[%clk 0:02:03]} 20... Rhc8 {[%clk
0:01:59.4]} 21. Rdc1 {[%clk 0:02:03.1]} 21... Rxc6 {[%clk 0:01:59.1]} 22. Rxc6
{[%clk 0:02:04]} 22... Kd7 {[%clk 0:01:59.6]} 23. Rc4 {[%clk 0:02:03.1]} 23...
Rc8 {[%clk 0:01:58.2]} 24. Rxc8 {[%clk 0:01:58.5]} 24... Kxc8 {[%clk 0:01:58]}
25. h3 {[%clk 0:01:57.3]} 25... Kb7 {[%clk 0:01:57.4]} 26. Kf1 {[%clk 0:01:55]}
26... Kc6 {[%clk 0:01:57.3]} 27. Ke2 {[%clk 0:01:54]} 27... h6 {[%clk
0:01:45.6]} 28. Kd3 {[%clk 0:01:51.3]} 28... g5 {[%clk 0:01:45.6]} 29. b3 {[%clk
0:01:45.6]} 29... f6 {[%clk 0:01:45.1]} 30. Kc4 {[%clk 0:01:33.8]} 30... h5
{[%clk 0:01:35.2]} 31. Bd2 {[%clk 0:00:47.1]} 31... a5 {[%clk 0:01:33.8]} 32.
Nb2 {[%clk 0:00:45.1]} 32... h4 {[%clk 0:01:33.9]} 33. Kd3 {[%clk 0:00:43.3]}
33... Bf4 {[%clk 0:01:32.6]} 34. Be1 {[%clk 0:00:36.2]} 34... Bc1 {[%clk
0:01:30.3]} 35. Nc4 {[%clk 0:00:36.3]} 35... Kb5 {[%clk 0:01:26.2]} 36. Nd6+
{[%clk 0:00:36.4]} 36... Kb6 {[%clk 0:01:25.5]} 37. Ne8 {[%clk 0:00:23.9]} 37...
Kc6 {[%clk 0:01:11.2]} 38. Kc4 {[%clk 0:00:22.8]} 38... Kd7 {[%clk 0:01:07.9]}
39. Ng7 {[%clk 0:00:18.8]} 39... Nf4 {[%clk 0:01:07.9]} 40. Kb5 {[%clk
0:00:17.1]} 40... Nxh3 {[%clk 0:01:07.5]} 41. Nh5 {[%clk 0:00:14.4]} 41... f5
{[%clk 0:00:57.8]} 42. Kxa5 {[%clk 0:00:12.6]} 42... Nf4 {[%clk 0:00:57.7]} 43.
Bxb4 {[%clk 0:00:12.5]} 43... Nxh5 {[%clk 0:00:57.6]} 44. Kb6 {[%clk 0:00:12]}
44... h3 {[%clk 0:00:57.3]} 0-1

[Event "Early-Titled-Tuesday-Blitz-February-27-2024"]
[Site "Chess.com"]
[Date "2024.02.27"]
[Round "1"]
[White "mary-sanna"]
[Black "LeninGuerra"]
[Result "0-1"]
[WhiteElo "2163"]
[BlackElo "2573"]
[TimeControl "180+1"]
[EndTime "8:07:07 PST"]
[Termination "LeninGuerra won on time"]

1. d4 {[%clk 0:02:59.6]} 1... Nf6 {[%clk 0:02:59.5]} 2. c4 {[%clk 0:02:59.7]}
2... c5 {[%clk 0:02:59.3]} 3. d5 {[%clk 0:02:59.3]} 3... b5 {[%clk 0:02:59.6]}
4. Qc2 {[%clk 0:02:57.7]} 4... d6 {[%clk 0:02:58.2]} 5. e4 {[%clk 0:02:57.3]}
5... bxc4 {[%clk 0:02:56.3]} 6. Bxc4 {[%clk 0:02:55.5]} 6... g6 {[%clk
0:02:56.7]} 7. Nf3 {[%clk 0:02:54.6]} 7... Bg7 {[%clk 0:02:57]} 8. O-O {[%clk
0:02:54.2]} 8... O-O {[%clk 0:02:57]} 9. Nc3 {[%clk 0:02:54]} 9... Nbd7 {[%clk
0:02:57.2]} 10. b3 {[%clk 0:02:36.1]} 10... a5 {[%clk 0:02:56.1]} 11. Bb2 {[%clk
0:02:34.9]} 11... Ba6 {[%clk 0:02:55.4]} 12. Bxa6 {[%clk 0:02:29.9]} 12... Rxa6
{[%clk 0:02:56.3]} 13. Na4 {[%clk 0:02:29.8]} 13... Nb6 {[%clk 0:02:53.3]} 14.
Nxb6 {[%clk 0:02:27.2]} 14... Qxb6 {[%clk 0:02:52.1]} 15. Nd2 {[%clk 0:02:24.8]}
15... a4 {[%clk 0:02:50.3]} 16. Nc4 {[%clk 0:02:18.4]} 16... Qa7 {[%clk
0:02:49.4]} 17. Rfe1 {[%clk 0:02:08.4]} 17... Ra8 {[%clk 0:02:42.6]} 18. Rad1
{[%clk 0:01:44.1]} 18... axb3 {[%clk 0:02:40.1]} 19. axb3 {[%clk 0:01:45]} 19...
Ra2 {[%clk 0:02:39.8]} 20. Qc3 {[%clk 0:01:45.1]} 20... Ne8 {[%clk 0:02:35.3]}
21. e5 {[%clk 0:01:45.2]} 21... dxe5 {[%clk 0:02:24]} 22. Nxe5 {[%clk 0:01:45]}
22... Nd6 {[%clk 0:02:20.1]} 23. Qc1 {[%clk 0:01:33.2]} 23... Qb7 {[%clk
0:02:12.6]} 24. Rd3 {[%clk 0:01:24.3]} 24... Qb5 {[%clk 0:01:54.3]} 25. Rf3
{[%clk 0:01:19.6]} 25... Nf5 {[%clk 0:01:22.8]} 26. g4 {[%clk 0:01:03.2]} 26...
Nd6 {[%clk 0:01:21.5]} 27. h4 {[%clk 0:00:48.3]} 27... c4 {[%clk 0:01:17.7]} 28.
Bd4 {[%clk 0:00:21.8]} 28... Qxd5 {[%clk 0:01:09]} 29. Qf4 {[%clk 0:00:19.8]}
29... cxb3 {[%clk 0:01:03.9]} 30. h5 {[%clk 0:00:16]} 30... R2a4 {[%clk
0:00:56.4]} 31. Nxf7 {[%clk 0:00:05.6]} 31... Nxf7 {[%clk 0:00:51.9]} 32. Rxe7
{[%clk 0:00:05.2]} 32... Rxd4 {[%clk 0:00:44]} 33. Qxf7+ {[%clk 0:00:04]} 33...
Qxf7 {[%clk 0:00:39]} 34. Rfxf7 {[%clk 0:00:04.1]} 34... Bf8 {[%clk 0:00:36.8]}
35. Rb7 {[%clk 0:00:02.3]} 35... Rxg4+ {[%clk 0:00:34.9]} 36. Kf1 {[%clk
0:00:01.9]} 36... gxh5 {[%clk 0:00:35.6]} 37. Ke2 {[%clk 0:00:01.9]} 37... Rg7
{[%clk 0:00:35.5]} 0-1